Cogmind - Beta 15 @@@ ROGUE MODE // 2025.07.30 @ 21:21:25 Player: Crow Result: Destroyed by G-47 Trooper with Particle Gun Performance ------------- Evolutions (2) 1000 Regions Visited (3) 600 Robots Destroyed (31) 155 Value Destroyed (1107) 1107 Prototype IDs (3) 60 Alien Tech Used (0) 0 Bonus (0) 0 TOTAL SCORE: 2922 Bonus ------- None Cogmind --------- Core Integrity 0/550 Matter 237/300 Energy 99/100 System Corruption 2% Temperature Cool (27) Movement Core (50) Location -8/Materials Parts ------- > --- POWER (3) -------- (None) > --- PROPULSION (4) --- (None) > --- UTILITY (2) ------ Visual Processing Unit > --- WEAPON (2) ------- (None) > --- INVENTORY (5) ---- (None) Peak State ------------ > --- POWER ------------ Light Nuclear Core Heavy Deuterium Engine Heavy Deuterium Engine > --- PROPULSION ------- Armored Huge Wheel Armored Huge Wheel > --- UTILITY ---------- Improved Heat Sink Visual Processing Unit > --- WEAPON ----------- Heavy Ion Cannon Heavy Ion Cannon > --- INVENTORY -------- Advanced Treads Makeshift Laser Makeshift Laser Advanced Beam Cannon Barrage Gun [Rating: 43] Favorites ----------- Power Subdweller Power Source Engine Subdweller Power Source Power Core Light Nuclear Core Propulsion Aluminum Leg Treads Advanced Treads Leg Aluminum Leg Wheel Armored Huge Wheel Flight Unit Improved VTOL Module Utility Signal Interpreter Device Improved Heat Sink Storage Large Storage Unit Processor Signal Interpreter Hackware Hacking Suite Protection Reactive Plating Weapon Makeshift Laser Energy Gun Makeshift Laser Energy Cannon Heavy Ion Cannon Ballistic Gun Subdweller Machine Gun Launcher Grenade Launcher Build | -11 -10 -10 -8 ------- Run | Yrd Mat Sub Mat Slots Evolved 4 | . . . 4 Power 2 | . . . 2 Propulsion 2 | . . . 2 Utility . | . . . . Weapon . | . . . . Parts Attached 45 | 7 9 6 23 Power 12 | 2 1 1 8 Engine 9 | 2 . 1 6 Core 3 | . 1 . 2 Reactor . | . . . . Propulsion 10 | 2 3 1 4 Treads 1 | . . . 1 Leg 5 | 2 3 . . Wheel 3 | . . 1 2 Hover . | . . . . Flight 1 | . . . 1 Utility 9 | 1 2 . 6 Device 2 | . . . 2 Storage 2 | 1 1 . . Processor 3 | . 1 . 2 Hackware 1 | . . . 1 Protection 1 | . . . 1 Artifact . | . . . . Weapon 14 | 2 3 4 5 Energy Gun 7 | 2 1 3 1 Energy Cannon 3 | . . . 3 Ballistic Gun 3 | . 1 1 1 Ballistic Cannon . | . . . . Launcher 1 | . 1 . . Special Weapon . | . . . . Impact Weapon . | . . . . Slashing Weapon . | . . . . Piercing Weapon . | . . . . Special Melee Weapon . | . . . . Unidentified Prototypes 3 | . . . 3 Parts Lost 24 | . 1 3 20 Power 6 | . . 1 5 Propulsion 6 | . . 1 5 Utility 4 | . . . 4 Weapon 8 | . 1 1 6 Highest Loss Streak 11 | . 1 3 11 To Critical Strikes . | . . . . Average Backups 4 | . 3 5 3 Power 1 | . 1 2 . Propulsion 1 | . 1 2 . Utility . | . . . . Weapon 1 | . . . 2 Tool/Special . | . . . . Unused Backups 1 | . . . 1 Power 1 | . . . 1 Propulsion . | . . . . Utility . | . . . . Weapon . | . . . . Tool/Special . | . . . . Average Slot Usage (%) 85 | . 93 92 69 Engine 12 | . 4 11 17 Core 2 | . 9 1 . Leg 17 | . 28 19 7 Wheel 4 | . . 2 11 Device 1 | . . . 4 Storage 9 | . 14 14 1 Processor 11 | . 12 14 7 Energy Gun 10 | . 9 13 6 Energy Cannon 3 | . . . 9 Ballistic Gun 9 | . 11 14 . Peak Build Rating 43 | 6 9 13 43 Average Rating 16 | 4 7 10 29 On Entrance 6 | . 6 9 12 Naked Turns . | . . . . Heaviest Build 44 | 13 29 33 44 Greatest Support 56 | 20 20 20 56 Greatest Overweight (x) 10 | . 1 10 4 Average Overweight (x) . | . . 1 . Largest Inventory Capacity 15 | 8 15 15 15 Average Capacity 11 | 6 10 15 6 Most Carried 9 | 1 6 9 8 Average Carried 5 | . 3 6 4 Final Capacity 15 | 8 15 15 5 Final Carried 9 | 1 6 9 . Class Distribution -------------------- 63% | Mutant 36% | Scavenger-Mutant Dominant Class ---------------- Mutant | -10/Materials Scavenger-Mutant | -10/Subcaves Mutant | -8/Materials Resources | -11 -10 -10 -8 ----------- Run | Yrd Mat Sub Mat Matter Collected 809 | 270 115 107 317 Remotely . | . . . . Salvage Created 1300 | . 196 . 1104 Parts 62 | . 15 . 47 Haulers Intercepted . | . . . . Recyclers Shooed . | . . . . Parts Field Recycled . | . . . . Retrieved Matter . | . . . . Parts Self-Destructed . | . . . . Prevented . | . . . . Kills | -11 -10 -10 -8 ------- Run | Yrd Mat Sub Mat Combat Hostiles Destroyed 26 | . 6 . 20 Guns 12 | . 5 . 7 Cannons 11 | . . . 11 AOE 1 | . 1 . . Classes Destroyed 10 | . 3 . 7 Builder 1 | . . . 1 Tunneler 1 | . 1 . . Mechanic 1 | . . . 1 Watcher 2 | . . . 2 Swarmer 4 | . 2 . 2 Grunt 12 | . 4 . 8 Brawler 1 | . . . 1 Sentry 7 | . . . 7 Hunter 1 | . . . 1 Heavy 1 | . . . 1 Best Kill Streak 4 | . 4 . 4 Combat Bots Only 4 | . 4 . 4 Max Kills in Single Turn 2 | . 1 . 2 Gunslinging . | . . . . Exploded 1 | . 1 . . Melee . | . . . . Uniques/NPCs Destroyed . | . . . . Combat | -11 -10 -10 -8 -------- Run | Yrd Mat Sub Mat Hostile Shots Fired 303 | . 49 14 240 Missed 85 | . 13 4 68 Hits 218 | . 36 10 172 Melee 5 | . . . 5 Projectile 213 | . 36 10 167 AOE 1 | . . . 1 Critical Strikes 7 | . . 1 6 Damage Taken 3497 | . 401 267 2829 Core 650 | . 53 37 560 Absorbed by Shields . | . . . . Regen/Repaired (Parts) 46 | . . . 46 Core Remaining (%) 82 | 100 . 64 . Volleys Fired 139 | . 37 13 89 Largest 2 | . 2 2 2 Hottest 130 | . 80 80 130 Shots Fired 228 | . 57 21 150 Gun 152 | . 55 21 76 Cannon 74 | . . . 74 Launcher 2 | . 2 . . Special . | . . . . Kinetic 61 | . 34 13 14 Thermal 141 | . 3 2 136 Explosive 2 | . 2 . . Electromagnetic 24 | . 18 6 . Robot Hit Streak 9 | . 4 6 9 Robot Miss Streak 4 | . 4 2 4 Penetration Max . | . . . . Secondary Targets 1 | . . . 1 Max Gunslinging Chain 1 | . . . 1 Shots Hit Robots 145 | . 31 15 99 Core Hits 56 | . 14 1 41 Critical Kills . | . . . . Critical Parts Destroyed 1 | . . 1 . Critical Strikes 8 | . . 1 7 Burn 7 | . . . 7 Destroy 1 | . . 1 . Melee Attacks . | . . . . Impact . | . . . . Slashing . | . . . . Piercing . | . . . . Sneak Attacks . | . . . . Combat Hostiles . | . . . . Follow-up Attacks . | . . . . Damage Inflicted 2854 | . 400 145 2309 Guns 1393 | . 296 145 952 Cannons 1308 | . . . 1308 Explosions 102 | . 102 . . Melee . | . . . . Ramming 51 | . 2 . 49 Kinetic 418 | . 166 74 178 Thermal 2112 | . 12 18 2082 Explosive 102 | . 102 . . Electromagnetic 171 | . 118 53 . Impact . | . . . . Slashing . | . . . . Piercing . | . . . . Highest Corruption 2 | . . . 2 Average Corruption 2 | . . . 2 Corruption Purged . | . . . . Corruption Blocked . | . . . . Effects 18 | . . . 18 Message Errors 3 | . . . 3 Matter Fused 5 | . . . 5 Heat Flow Errors 3 | . . . 3 Energy Discharges 1 | . . . 1 Parts Rejected 3 | . . . 3 Data Loss (minor) 1 | . . . 1 Misfires 1 | . . . 1 Weapon Failures 1 | . . . 1 Overload Shots . | . . . . Overflow Damage 11 | . . . 11 Projectiles 11 | . . . 11 Explosions . | . . . . Melee . | . . . . Knockbacks . | . . . . Impact . | . . . . Kinetic . | . . . . Secondary . | . . . . Self-Inflicted Damage 48 | . 24 . 24 Shots 2 | . 2 . . Rammed 4 | . . . 4 Targets Rammed 6 | . 2 . 4 Kicked 2 | . 2 . . Crushed . | . . . . Highest Temperature 654 | . 69 7 654 Average Temperature 141 | . 16 3 167 Received Heat Transfer 1374 | . 147 48 1179 Effects 31 | . . . 31 Shutdowns 13 | . . . 13 Energy Bleed 2 | . . . 2 Interference 6 | . . . 6 Matter Decay 1 | . . . 1 Short Circuit 4 | . . . 4 Damage (minor) 3 | . . . 3 Damage (major) 2 | . . . 2 Siege Activations . | . . . . Martial Activations . | . . . . Shielding Activations . | . . . . Robots Disrupted . | . . . . Combat Hostiles . | . . . . Robots Corrupted . | . . . . Combat Hostiles . | . . . . Parts Fried . | . . . . Impact Corruptions . | . . . . Robots Melted 2 | . . . 2 Combat Hostiles 2 | . . . 2 Parts Melted 10 | . . . 10 Heat Transferred 4046 | . 25 25 3996 Parts Sabotaged . | . . . . Parts Stolen . | . . . . Parts Stripped . | . . . . Power Chain Reactions . | . . . . Alert | -11 -10 -10 -8 ------- Run | Yrd Mat Sub Mat Maximum Alert Level . | . . . . Low Security (%) 100 | 100 100 . 100 Level 1 . | . . . . Level 2 . | . . . . Level 3 . | . . . . Level 4 . | . . . . Level 5 . | . . . . High Security . | . . . . Max Security . | . . . . Peak Influence 147 | . 80 . 147 Initial . | . . . . Average 34 | . 18 . 45 Influence Increases 773 | . 175 . 598 Destroy 0b10 Robot/C 520 | . 120 . 400 Destroy 0b10 Robot/NC 25 | . 5 . 20 Destroy Leader 184 | . 40 . 144 Successful Hack 3 | . . . 3 Destroy Structure 26 | . 10 . 16 Partial Spotted 15 | . . . 15 Influence Decreases 716 | . 175 . 541 Time Decay 511 | . 165 . 346 Lost Part 205 | . 10 . 195 Squads Dispatched 9 | . 2 . 7 Investigation 2 | . 1 . 1 Extermination . | . . . . Reinforcement 4 | . 1 . 3 Assault . | . . . . Garrison 3 | . . . 3 Intercept . | . . . . Searches Triggered . | . . . . Construction Impeded . | . . . . Haulers Reinforced . | . . . . Active Scanning Responses . | . . . . Cargo Convoy Interrupts . | . . . . Stealth | -11 -10 -10 -8 --------- Run | Yrd Mat Sub Mat Distress Signals 7 | . 1 . 6 Communications Jammed . | . . . . Distress Signals . | . . . . Times Spotted 63 | . 13 12 38 Peak Tracking Total 8 | . 4 7 8 Tactical Retreats . | . . . . Traps | -11 -10 -10 -8 ------- Run | Yrd Mat Sub Mat Traps Triggered 3 | . 1 . 2 Indirectly . | . . . . Trap Hack Attempts . | . . . . Triggered . | . . . . Disarmed . | . . . . Reprogrammed . | . . . . Reused . | . . . . Traps Extracted . | . . . . Installed . | . . . . Triggered . | . . . . Machines | -11 -10 -10 -8 ---------- Run | Yrd Mat Sub Mat Machines Disabled . | . . . . Max in Single Turn . | . . . . Machines Repaired . | . . . . Machines Dismantled . | . . . . Machines Sabotaged . | . . . . Overloaded Fab Kills . | . . . . Hacking | -11 -10 -10 -8 --------- Run | Yrd Mat Sub Mat Machines Accessed 3 | . . . 3 Terminals . | . . . . Fabricators . | . . . . Repair Stations 1 | . . . 1 Recycling Units . | . . . . Scanalyzers 1 | . . . 1 Garrison Access 1 | . . . 1 Total Hacks 8 | . . . 8 Successful 8 | . . . 8 Failed . | . . . . Catastrophic . | . . . . Database Lockouts . | . . . . Manual . | . . . . Terminals . | . . . . Fabricators . | . . . . Repair Stations 2 | . . . 2 Recycling Units . | . . . . Scanalyzers 5 | . . . 5 Garrison Access 1 | . . . 1 Terminal Hacks . | . . . . Fabricator Hacks . | . . . . Repair Station Hacks 2 | . . . 2 Scan Component 1 | . . . 1 Repair 1 | . . . 1 Recycling Unit Hacks . | . . . . Scanalyzer 5 | . . . 5 Insert Component 2 | . . . 2 Analyze 3 | . . . 3 Garrison Access Hacks 1 | . . . 1 Unlock Access 1 | . . . 1 Unauthorized Hacks . | . . . . Terminals . | . . . . Fabricators . | . . . . Repair Stations . | . . . . Recycling Units . | . . . . Scanalyzers . | . . . . Garrison Access . | . . . . Data Cores Recovered . | . . . . Used . | . . . . Hacking Detections 3 | . . . 3 Full Trace Events 1 | . . . 1 Feedback Events . | . . . . Feedback Blocked . | . . . . Robot Schematics Acquired . | . . . . Robots Built . | . . . . Authchips . | . . . . Time . | . . . . Total Robot Build Rating . | . . . . Part Schematics Acquired 2 | . . . 2 Parts Built . | . . . . Authchips . | . . . . Time . | . . . . Total Part Build Rating . | . . . . Parts Repaired 1 | . . . 1 Time 44 | . . . 44 Parts Recycled . | . . . . Recycled Matter . | . . . . Retrieved Matter . | . . . . Retrieved Components . | . . . . Parts Scanalyzed 2 | . . . 2 Part Schematics Acquired 2 | . . . 2 Parts Damaged . | . . . . Bothacking | -11 -10 -10 -8 ------------ Run | Yrd Mat Sub Mat Used RIF Installer . | . . . . Robots Hacked . | . . . . Non-combat . | . . . . Combat . | . . . . Robot Hacks Applied . | . . . . Relay Couplers Released . | . . . . Fabnet Peak Effective % . | . . . . Robots Rewired . | . . . . Allies Hacked . | . . . . Hacks Repelled . | . . . . Allies | -11 -10 -10 -8 -------- Run | Yrd Mat Sub Mat Total Allies . | . . . . Largest Group . | . . . . Highest-Rated Group . | . . . . Highest-Rated Ally . | . . . . Total Orders . | . . . . Ally Attacks . | . . . . Total Damage . | . . . . Kills . | . . . . Allies Corrupted . | . . . . Allies Melted . | . . . . Intel | -11 -10 -10 -8 ------- Run | Yrd Mat Sub Mat Active Infowar (turns) 913 | . . . 913 Optics 913 | . . . 913 Robot Analysis Total . | . . . . Derelict Logs Recovered . | . . . . Drone Launches . | . . . . Drone Recoveries . | . . . . Exploration | -11 -10 -10 -8 ------------- Run | Yrd Mat Sub Mat Turns Passed 3727 | 75 692 1730 1230 Spaces Moved 2006 | 55 415 812 724 Core 13 | 3 . 1 9 Treads 12 | . . . 12 Legs 1228 | 52 415 580 181 Wheels 753 | . . 231 522 Hover . | . . . . Flight . | . . . . Fastest Speed 50 | 50 120 120 50 Average Speed 156 | 116 140 205 113 Slowest Speed 550 | 120 190 550 250 Overloaded Moves . | . . . . Propulsion Burnouts . | . . . . Robots Hopped . | . . . . Potential Cave-ins . | . . . . Cave-ins Triggered . | . . . . Exploration Rate (%) 35 | 4 52 38 48 Regions Visited 3 Branch Regions 1 Pre-discovered Areas . | . . . . Known Exits Taken 2 | . 1 1 . Unknown Exits Taken 1 | 1 . . . Scrap Searched 5 | . . 5 . Spaces Dug . | . . . . Terrain Destroyed 24 | . 10 . 14 Melee . | . . . . Projectile 14 | . . . 14 AOE 10 | . 10 . . Terrain Rammed . | . . . . Walls Destroyed . | . . . . Machines Disabled . | . . . . Actions | -11 -10 -10 -8 --------- Run | Yrd Mat Sub Mat Total 2366 | 62 470 852 982 Wait 122 | 1 8 7 106 Move 2003 | 54 414 811 724 Hop . | . . . . Pick Up 13 | . . 5 8 Fast Attach 24 | 6 2 3 13 Attach 12 | . . 1 11 Detach 3 | . . 1 2 Swap 24 | 1 7 4 12 Drop 15 | . . 2 13 Fire 139 | . 37 13 89 Melee . | . . . . Ram 4 | . . . 4 Kick 2 | . 2 . . Crush . | . . . . Escape Stasis . | . . . . Rewire 5 | . . 5 . Trap . | . . . . Miscellaneous . | . . . . Route ------- -11/Scrapyard -10/Materials (discovered 4 exits: [*Mat] / [*Min x2] / *Sub) -10/Subcaves -8/Materials (discovered 1 exit: Gar) History --------- Turn | Location | Event 7 | -11/Scrapyard | Discovered new exit (range 16) 76 | -11/Scrapyard | Entered Materials 86 | -10/Materials | Discovered new exit (range 16) 203 | -10/Materials | Discovered new exit (range 7) 321 | -10/Materials | Build established: Mutant 473 | -10/Materials | Discovered new exit (range 4) 693 | -10/Materials | Discovered new exit (range 7) 753 | -10/Materials | Identified exit to Subcaves 768 | -10/Materials | Entered Subcaves 770 | -10/Subcaves | Ambushed by Subdwellers from Twisted Machinery 984 | -10/Subcaves | Ambushed by swarm of Subdwellers 985 | -10/Subcaves | Ambushed by Subdwellers from Twisted Machinery 985 | -10/Subcaves | Ambushed by Subdwellers from Twisted Machinery 1029 | -10/Subcaves | Lost 3 parts (1p1n1w) 1368 | -10/Subcaves | Build established: Scavenger-Mutant 1913 | -10/Subcaves | Disturbed a concealed Subdweller 2426 | -10/Subcaves | Discovered new exit (range 14) 2496 | -10/Subcaves | Identified exit to Materials 2498 | -10/Subcaves | Entered Materials 2498 | -8/Materials | Evolved 4 slots: Power x2, Propulsion x2 2567 | -8/Materials | Repaired Mak. Laser 2680 | -8/Materials | Garrison activated, responded to threat 2708 | -8/Materials | Build established: Mutant 2747 | -8/Materials | Identified exit to Garrison 3151 | -8/Materials | Lost 4 parts (2p2u) 3571 | -8/Materials | Lost 3 parts (1p1n1w) 3644 | -8/Materials | Core integrity fell below 50% 3713 | -8/Materials | Core integrity fell below 20% 3728 | -8/Materials | Destroyed by G-47 Trooper with Particle Gun Last Messages --------------- U-05 Engineer builds a Door. G-47 Trooper suffers critical hit (Burn). Particle Gun melted. G-47 Trooper destroyed. Switching to secondary target: G-47 Trooper. U-05 Engineer destroyed. Mak. Laser destroyed. Arm. Huge Wheel destroyed. Adv. Beam Cannon destroyed. System corrupted: Heat flow error (+150). Adv. Treads destroyed. Imp. Heat Sink destroyed. Acquired Reactive Plating. Hvy. Deuterium Engine destroyed. R-06 Scavenger collects Heat Sink. Barrage Gun destroyed. Slammed into G-47 Trooper. Destabilizing: Core damaged (-16). Reactive Plating destroyed. R-06 Scavenger collects Imp. VTOL Module. Map ----- +----------------------------------------------------+ | #????????????????????????????????????????????????? | | ###########??????????????????????????????????????? | | # #??????????????????????????????????????? | | # ! #??????????????????????????????????????? | | # [ #??????????????????????????????????????? | | # """ """ #??????????????????????????????????????? | | + """ """ #??????????????????????????????????????? | | # """ """ #??????????????????????????????????????? | | # #??????????????????????????????????????? | | # #??????????????????????????????????????? | | ###########??????????????????????????????????????? | | #????????????????????????????????????????????????? | | #????????????????????????????????????????????????? | | #????????????????????????????????????????????????? | | ################?????????????????????????????????? | | #?????????????????????????????????? | | #?????????????????????????????????? | | #?????????????????????????????????? | | % #?????????????????????????????????? | | ###+###### #???##+##?????????????????????????? | | ### ## #???# ##############????????????? | | ??# ## ##### # [! % r ##???????????? | | ??# # # l gg """ #???????????? | | ??#= ## g """ ##???????????? | | ??# ## # ! """ #????????????? | | ??# ## # @ g * #????????????? | | ??# ! ## ########+#####????????????? | | ??# ! ## % #???????????????? | | ??#! ## ##??????????????? | | ??# ## ! #??????????????? | | ??# ## % T#??????????????? | | ??# ######### ! "#??????#???????? | | ??# #??????## =##???? ##??????? | | ################ %#### #??????? | | | % [ %* ] #??????? | | %|= ! +??????? | | ] % %%% % *%! %! #??????? | | ??###############+##### #####+##### #??????? | | ????????????# #% # #?## " !????? | | ????????????# """ """ # ##! = ""#??# # ??? | | ????????????# """ """ # ## T"#??# #??##??? | | ????????????# """ """ # ## ""#??# #??????? | | ????????????# %+ ##] #??# #??????? | | ????????????# #% ## #??# #??????? | | ????????????# # ## ! """ #??# #??????? | | ????????????# #& ## """ #??# ######## | | ????????????########### & ##! """ #??# ## # | | ??????????????## !## ## """ #?## ## "" # | | ??????????????# T ## ## ???#??# ## ""S # | | ????############ ##% %######??????# ## "" # | +----------------------------------------------------+ Best States ------------- Heat Dissipation 45 Energy Generation 36 Energy Capacity 545 Matter Stores 300 Matter Capacity 300 Sight Range 20 Terrain Scan Density 10 Armor Coverage 150 Resistance: KI 20 Evasion (%) 55 Recoil Reduction 1 Particle Charging 15 Offensive Hacking 10 Item Schematics ----------------- Adv. Beam Cannon | -8/Materials | Scanalyzed Mak. Laser | -8/Materials | Scanalyzed Robot Schematics ------------------ None Fabricated ------------ Nothing Repaired ---------- Mak. Laser | 34% | -8/Materials Alien Tech Used ----------------- None Achievements -------------- None Challenges ------------ None Game ------ Seed PersonalIonicImmobilizer Manual? 0 Play Time 00:31:33 Cumulative 6.0 hours Start 2025.07.30 @ 20:46:53 End 2025.07.30 @ 21:21:25 Sessions 1 Manual Loads 0 Difficulty Rogue Special Mode None Game No. 11 Rogue 11 Adventurer 0 Explorer 0 Win Type - Total 0 Types 0/0/0/0/0/0/0/0/0/0 Lore% 0 Gallery% 11 Achievement% 8 Wizard Run 0 Options --------- Layout 0 ASCII 0 Keyboard 0 Movement Numpad Keybinds 0 Fullscreen 1 Font 24/Smallcaps Map View 76x50 Zoom Use 0% Tactical HUD 0 Map Filters NONE Filters NONE Steam 1 RUN: 58cd1112-2ea0-48ef-af5b-add3098d4cd8